[Event "IV Zagreb Open 2019"]
[Site "Zagreb"]
[Date "2019.12.10"]
[Round "5.5"]
[White "Ivekovic, Bozidar"]
[Black "Strikovic, Aleksa"]
[Result "0-1"]
[ECO "B77"]
[WhiteElo "2406"]
[BlackElo "2468"]
[Annotator "ChessBase"]
[PlyCount "112"]
[EventDate "2019.12.07"]
[EventType "swiss"]
[EventCountry "CRO"]
[SourceTitle "playchess.com"]
[Source "ChessBase"]
[SourceQuality "1"]
[TimeControl "40/5400+30:1800+30"]

1. Nf3 {[%emt 0:01:07]} c5 {[%emt 0:00:17]} 2. e4 {[%emt 0:02:06]} d6 {[%emt 0:00:10]} 3. d4 {[%emt 0:00:21]} cxd4 {[%emt 0:00:05]} 4. Nxd4 {[%emt 0:00:03]} Nf6 {[%emt 0:00:06]} 5. Nc3 {[%emt 0:00:04]} g6 {[%emt 0:00:05]} 6. Be3 {[%emt 0:02:03]} Bg7 {[%emt 0:00:06]} 7. f3 {[%emt 0:00:58]} O-O {[%emt 0:00:07]} 8. Bc4 {[%emt 0:00:04]} Nc6 {[%emt 0:00:10]} 9. Qd2 {[%emt 0:00:11]} Bd7 {[%emt 0:00:06]} 10. O-O-O {[%emt 0:00:07]} Rb8 {[%emt 0:00:06]} 11. Bb3 {[%emt 0:09:02]} Na5 {[%emt 0:13:59]} 12. Bh6 {[%emt 0:05:18]} b5 {[%emt 0:14:03]} 13. h4 {[%emt 0:00:51]} Nc4 {[%emt 0:06:01]} 14. Qg5 {[%emt 0:00:42]} Rc8 {[%emt 0:01:40]} 15. h5 {[%emt 0:35:50]} Rc5 {[%emt 0:10:41]} 16. Nd5 {[%emt 0:00:05]} Bxh6 {[%emt 0:00:16]} 17. Qxh6 {[%emt 0:00:14]} g5 {[%emt 0:00:08]} 18. Bxc4 {[%emt 0:08:31]} bxc4 {[%emt 0:01:31]} 19. Nxf6+ {[%emt 0:00:21]} exf6 {[%emt 0:00:07]} 20. Ne2 {[%emt 0:00:05]} Qe7 {[%emt 0:03:34]} 21. Nc3 {[%emt 0:00:42]} Bc6 {[%emt 0:00:14]} 22. Rd4 {[%emt 0:01:49]} Re5 {[%emt 0:05:39]} 23. Nd1 {[%emt 0:13:55]} d5 {[%emt 0:06:04]} 24. Ne3 {[%emt 0:00:03]} Rb8 {[%emt 0:03:36]} 25. Ng4 {[%emt 0:02:49]} Re6 {[%emt 0:02:05]} 26. exd5 {[%emt 0:00:49]} Bxd5 {[%emt 0:14:52]} 27. Nxf6+ {[%emt 0:09:24]} Qxf6 {[%emt 0:00:17]} 28. Qxf6 {[%emt 0:00:05]} Rxf6 {[%emt 0:00:09]} 29. Rxd5 {[%emt 0:00:00]} h6 {[%emt 0:00:35]} 30. Rhd1 {[%emt 0:00:36]} Rbb6 {[%emt 0:00:05]} 31. R1d4 {[%emt 0:03:25]} Ra6 {[%emt 0:01:12]} 32. Rxc4 {[%emt 0:02:18]} Rxa2 {[%emt 0:00:05]} 33. Rc8+ {[%emt 0:00:05]} Kg7 {[%emt 0:00:06]} 34. Rdd8 {[%emt 0:00:03]} Rb6 {[%emt 0:00:21]} 35. Rh8 {[%emt 0:00:44]} Raxb2 {[%emt 0:07:26]} 36. Rcg8+ {[%emt 0:00:05]} Kf6 {[%emt 0:00:08]} 37. Rxh6+ {[%emt 0:00:45]} Kf5 {[%emt 0:00:12]} 38. Rh7 {[%emt 0:01:16]} f6 {[%emt 0:03:03]} 39. Rxa7 {[%emt 0:00:13]} Rb1+ {[%emt 0:00:05]} 40. Kd2 {[%emt 0:00:00]} Rg1 {[%emt 0:00:00]} 41. Ra5+ {[%emt 0:01:48]} Kf4 {[%emt 0:00:26]} 42. Ra4+ {[%emt 0:00:30]} Kg3 {[%emt 0:00:06]} 43. Rg4+ {[%emt 0:03:22]} Kf2 {[%emt 0:00:05]} 44. h6 {[%emt 0:00:37]} Rh1 {[%emt 0:03:57]} 45. Rg6 {[%emt 0:01:59]} Rd6+ {[%emt 0:00:05]} 46. Kc3 {[%emt 0:00:04]} Rc6+ {[%emt 0:00:04]} 47. Rc4 {[%emt 0:00:18]} Ra6 {[%emt 0:00:07]} 48. Rg4 {[%emt 0:07:56]} Rc6+ {[%emt 0:00:13]} 49. Kd4 {[%emt 0:01:34]} Rd1+ {[%emt 0:04:24]} 50. Ke4 {[%emt 0:00:05]} Rdd6 {[%emt 0:00:08]} 51. Rg8 {[%emt 0:06:58]} Rc5 {[%emt 0:07:01]} 52. R4xg5 {[%emt 0:01:51]} Rxg5 {[%emt 0:00:08]} 53. Rxg5 {[%emt 0:00:03]} fxg5 {[%emt 0:00:06]} 54. Kf5 {[%emt 0:00:37]} Rxh6 {[%emt 0:00:13]} 55. Kxg5 {[%emt 0:00:05]} Rc6 {[%emt 0:00:34]} 56. c4 {[%emt 0:06:11]} Ke3 {[%emt 0:01:16]} 0-1

[Event "IV Zagreb Open 2019"]
[Site "Zagreb"]
[Date "2019.12.10"]
[Round "5.7"]
[White "Sokac, Marko"]
[Black "Stany, G.A."]
[Result "1/2-1/2"]
[ECO "B20"]
[WhiteElo "2316"]
[BlackElo "2526"]
[Annotator "ChessBase"]
[PlyCount "48"]
[EventDate "2019.12.07"]
[EventType "swiss"]
[EventCountry "CRO"]
[SourceTitle "playchess.com"]
[Source "ChessBase"]
[SourceQuality "1"]
[TimeControl "40/5400+30:1800+30"]

1. e4 {[%emt 0:00:00]} c5 {[%emt 0:00:00]} 2. a3 {[%emt 0:00:01]} Nc6 {[%emt 0:00:02]} 3. b4 {[%emt 0:00:14]} Nf6 {[%emt 0:00:09]} 4. b5 {[%emt 0:04:39]} Nd4 {[%emt 0:00:12]} 5. c3 {[%emt 0:03:02]} Ne6 {[%emt 0:00:13]} 6. e5 {[%emt 0:01:52]} Nd5 {[%emt 0:00:06]} 7. Qf3 {[%emt 0:17:46]} Ndc7 {[%emt 0:05:42]} 8. a4 {[%emt 0:03:21]} d6 {[%emt 0:07:30]} 9. exd6 {[%emt 0:01:09]} exd6 {[%emt 0:00:13]} 10. Nh3 {[%emt 0:01:25]} g6 {[%emt 0:04:07]} 11. Na3 {[%emt 0:17:37]} Bg7 {[%emt 0:01:49]} 12. Be2 {[%emt 0:04:56]} O-O {[%emt 0:01:11]} 13. O-O {[%emt 0:00:22]} d5 {[%emt 0:11:00]} 14. Nc2 {[%emt 0:01:47]} b6 {[%emt 0:02:50]} 15. Rd1 {[%emt 0:01:12]} a6 {[%emt 0:15:38]} 16. bxa6 {[%emt 0:06:19]} Bxa6 {[%emt 0:00:12]} 17. d4 {[%emt 0:03:13]} Bxe2 {[%emt 0:03:06]} 18. Qxe2 {[%emt 0:00:01]} Qd7 {[%emt 0:01:36]} 19. Nf4 {[%emt 0:05:43]} Rxa4 {[%emt 0:16:30]} 20. Nxe6 {[%emt 0:04:42]} fxe6 {[%emt 0:01:19]} 21. Rxa4 {[%emt 0:02:04]} Qxa4 {[%emt 0:00:07]} 22. Bg5 {[%emt 0:00:56]} Qc6 {[%emt 0:09:43]} 23. Rb1 {[%emt 0:05:14]} b5 {[%emt 0:11:39]} 24. Be7 {[%emt 0:00:35]} Re8 {[%emt 0:01:28]} 1/2-1/2

[Event "IV Zagreb Open 2019"]
[Site "Zagreb"]
[Date "2019.12.10"]
[Round "5.8"]
[White "Ongut, Tamas Gunes"]
[Black "Cvitan, Ognjen"]
[Result "1/2-1/2"]
[ECO "B76"]
[WhiteElo "2288"]
[BlackElo "2488"]
[Annotator "ChessBase"]
[PlyCount "38"]
[EventDate "2019.12.07"]
[EventType "swiss"]
[EventCountry "CRO"]
[SourceTitle "playchess.com"]
[Source "ChessBase"]
[SourceQuality "1"]
[TimeControl "40/5400+30:1800+30"]

1. e4 {[%emt 0:00:00]} c5 {[%emt 0:03:06]} 2. Nf3 {[%emt 0:00:00]} d6 {[%emt 0:00:23]} 3. d4 {[%emt 0:00:00]} cxd4 {[%emt 0:00:15]} 4. Nxd4 {[%emt 0:00:00]} Nf6 {[%emt 0:00:13]} 5. Nc3 {[%emt 0:00:08]} g6 {[%emt 0:00:20]} 6. Be3 {[%emt 0:00:33]} Bg7 {[%emt 0:00:07]} 7. f3 {[%emt 0:00:15]} Nc6 {[%emt 0:00:10]} 8. Qd2 {[%emt 0:00:12]} O-O {[%emt 0:00:08]} 9. O-O-O {[%emt 0:00:55]} d5 {[%emt 0:00:08]} 10. exd5 {[%emt 0:02:18]} Nxd5 {[%emt 0:00:33]} 11. Nxc6 {[%emt 0:00:10]} bxc6 {[%emt 0:00:11]} 12. Bd4 {[%emt 0:00:09]} Bxd4 {[%emt 0:00:22]} 13. Qxd4 {[%emt 0:00:07]} Qb6 {[%emt 0:00:06]} 14. Na4 {[%emt 0:00:26]} Qc7 {[%emt 0:00:21]} 15. Nc5 {[%emt 0:01:16]} Rd8 {[%emt 0:01:01]} 16. Bc4 {[%emt 0:00:51]} Bf5 {[%emt 0:00:59]} 17. Bb3 {[%emt 0:02:34]} Nf4 {[%emt 0:00:35]} 18. Qf2 {[%emt 0:04:13]} Rxd1+ {[%emt 0:01:13]} 19. Rxd1 {[%emt 0:00:09]} Rd8 {[%emt 0:00:08]} 1/2-1/2

[Event "IV Zagreb Open 2019"]
[Site "Zagreb"]
[Date "2019.12.10"]
[Round "5.9"]
[White "Kovacevic, Blazimir"]
[Black "Jurkovic, Ante"]
[Result "1-0"]
[ECO "A70"]
[WhiteElo "2453"]
[BlackElo "2274"]
[Annotator "ChessBase"]
[PlyCount "137"]
[EventDate "2019.12.07"]
[EventType "swiss"]
[EventCountry "CRO"]
[SourceTitle "playchess.com"]
[Source "ChessBase"]
[SourceQuality "1"]
[TimeControl "40/5400+30:1800+30"]

1. d4 {[%emt 0:00:00]} d6 {[%emt 0:00:00]} 2. Nf3 {[%emt 0:00:00]} g6 {[%emt 0:00:20]} 3. e4 {[%emt 0:00:38]} Bg7 {[%emt 0:00:19]} 4. Bd3 {[%emt 0:00:06]} c5 {[%emt 0:02:06]} 5. d5 {[%emt 0:02:12]} Nf6 {[%emt 0:01:00]} 6. c4 {[%emt 0:00:59]} e6 {[%emt 0:00:35]} 7. h3 {[%emt 0:02:44]} exd5 {[%emt 0:00:20]} 8. cxd5 {[%emt 0:02:21]} O-O {[%emt 0:00:52]} 9. Nc3 {[%emt 0:03:36]} b5 {[%emt 0:06:41]} 10. Bxb5 {[%emt 0:08:28]} Nxe4 {[%emt 0:01:31]} 11. Nxe4 {[%emt 0:00:03]} Qa5+ {[%emt 0:00:20]} 12. Nfd2 {[%emt 0:00:04]} Qxb5 {[%emt 0:01:04]} 13. Nxd6 {[%emt 0:00:15]} Qd3 {[%emt 0:09:31]} 14. N2c4 {[%emt 0:10:33]} Qxd1+ {[%emt 0:01:23]} 15. Kxd1 {[%emt 0:00:04]} Ba6 {[%emt 0:01:11]} 16. Kc2 {[%emt 0:14:18]} Nd7 {[%emt 0:00:25]} 17. Bf4 {[%emt 0:01:11]} Bd4 {[%emt 0:03:48]} 18. Rad1 {[%emt 0:12:40]} Bxf2 {[%emt 0:10:12]} 19. Na5 {[%emt 0:22:02]} Bd4 {[%emt 0:15:16]} 20. Nc6 {[%emt 0:00:18]} Bf6 {[%emt 0:10:46]} 21. Rhe1 {[%emt 0:02:13]} Kg7 {[%emt 0:07:26]} 22. Re3 {[%emt 0:03:51]} Nb6 {[%emt 0:07:06]} 23. g4 {[%emt 0:03:42]} Bc4 {[%emt 0:02:19]} 24. g5 {[%emt 0:01:31]} Bd4 {[%emt 0:04:12]} 25. Nxd4 {[%emt 0:02:07]} cxd4 {[%emt 0:00:38]} 26. Be5+ {[%emt 0:01:18]} Kg8 {[%emt 0:02:28]} 27. Bxd4 {[%emt 0:01:06]} Rfd8 {[%emt 0:01:51]} 28. Nxc4 {[%emt 0:01:23]} Nxc4 {[%emt 0:01:03]} 29. Rc3 {[%emt 0:00:44]} Nd6 {[%emt 0:03:59]} 30. Bf6 {[%emt 0:01:26]} Rd7 {[%emt 0:00:43]} 31. Rc6 {[%emt 0:00:08]} Ne4 {[%emt 0:01:12]} 32. Rd4 {[%emt 0:01:38]} Nd6 {[%emt 0:02:22]} 33. Ra6 {[%emt 0:01:47]} Rc8+ {[%emt 0:01:30]} 34. Rc6 {[%emt 0:00:12]} Re8 {[%emt 0:00:37]} 35. Kd1 {[%emt 0:01:04]} Nf5 {[%emt 0:00:23]} 36. Rd3 {[%emt 0:00:30]} Rxd5 {[%emt 0:01:52]} 37. Rxd5 {[%emt 0:00:08]} Ne3+ {[%emt 0:00:13]} 38. Kd2 {[%emt 0:00:00]} Nxd5 {[%emt 0:00:25]} 39. Ra6 {[%emt 0:00:39]} Re6 {[%emt 0:00:58]} 40. Rxa7 {[%emt 0:00:00]} Nxf6 {[%emt 0:00:00]} 41. gxf6 {[%emt 0:00:48]} Rxf6 {[%emt 0:00:18]} 42. b4 {[%emt 0:00:26]} Rb6 {[%emt 0:03:18]} 43. a3 {[%emt 0:07:57]} Kg7 {[%emt 0:00:29]} 44. Rc7 {[%emt 0:01:30]} g5 {[%emt 0:00:46]} 45. Rc4 {[%emt 0:00:40]} h5 {[%emt 0:03:51]} 46. a4 {[%emt 0:00:43]} f5 {[%emt 0:05:53]} 47. b5 {[%emt 0:00:30]} g4 {[%emt 0:01:18]} 48. h4 {[%emt 0:06:30]} Re6 {[%emt 0:03:44]} 49. a5 {[%emt 0:02:24]} Re5 {[%emt 0:01:15]} 50. Rb4 {[%emt 0:04:57]} g3 {[%emt 0:02:34]} 51. b6 {[%emt 0:00:03]} g2 {[%emt 0:01:08]} 52. Rb1 {[%emt 0:00:09]} Rb5 {[%emt 0:01:16]} 53. Rg1 {[%emt 0:01:02]} Rxa5 {[%emt 0:00:38]} 54. Rxg2+ {[%emt 0:00:03]} Kf6 {[%emt 0:00:21]} 55. Kc3 {[%emt 0:01:15]} Ra8 {[%emt 0:02:41]} 56. Kd4 {[%emt 0:04:40]} f4 {[%emt 0:00:49]} 57. Kd5 {[%emt 0:02:01]} Rd8+ {[%emt 0:03:45]} 58. Ke4 {[%emt 0:01:24]} f3 {[%emt 0:03:28]} 59. Rb2 {[%emt 0:00:09]} Rb8 {[%emt 0:01:22]} 60. Kxf3 {[%emt 0:00:06]} Ke5 {[%emt 0:00:42]} 61. b7 {[%emt 0:01:02]} Kd6 {[%emt 0:00:27]} 62. Kf4 {[%emt 0:00:52]} Kc7 {[%emt 0:00:10]} 63. Kg5 {[%emt 0:00:40]} Rg8+ {[%emt 0:00:09]} 64. Kxh5 {[%emt 0:00:08]} Kb8 {[%emt 0:00:07]} 65. Kh6 {[%emt 0:00:33]} Rg4 {[%emt 0:02:14]} 66. h5 {[%emt 0:00:07]} Rg8 {[%emt 0:00:37]} 67. Kh7 {[%emt 0:00:25]} Rg5 {[%emt 0:00:19]} 68. h6 {[%emt 0:00:49]} Rg1 {[%emt 0:00:33]} 69. Rb6 {[%emt 0:00:12]} 1-0

[Event "IV Zagreb Open 2019"]
[Site "Zagreb"]
[Date "2019.12.10"]
[Round "5.10"]
[White "Lalic, Bogdan"]
[Black "Bozanic, Ivica"]
[Result "1/2-1/2"]
[ECO "A89"]
[WhiteElo "2414"]
[BlackElo "2145"]
[Annotator "NA"]
[PlyCount "88"]
[EventDate "2019.12.07"]
[EventType "swiss"]
[EventCountry "CRO"]
[SourceTitle "playchess.com"]
[Source "ChessBase"]
[SourceQuality "1"]
[TimeControl "40/5400+30:1800+30"]

1. d4 {[%emt 0:00:00]} f5 {[%emt 0:00:00]} 2. g3 {[%emt 0:00:00]} Nf6 {[%emt 0:00:07]} 3. Bg2 {[%emt 0:00:00]} g6 {[%emt 0:00:21]} 4. Nf3 {[%emt 0:00:07]} Bg7 {[%emt 0:00:11]} 5. c4 {[%emt 0:00:09]} d6 {[%emt 0:00:09]} 6. Nc3 {[%emt 0:00:13]} O-O {[%emt 0:00:21]} 7. O-O {[%emt 0:00:09]} Nc6 {[%emt 0:00:52]} 8. d5 {[%emt 0:00:10]} Ne5 {[%emt 0:06:57]} 9. Nxe5 {[%emt 0:00:12]} dxe5 {[%emt 0:00:05]} 10. Qb3 {[%emt 0:00:14]} Kh8 {[%emt 0:02:54]} 11. c5 {[%emt 0:00:12]} h6 {[%emt 0:03:51]} 12. Rd1 {[%emt 0:00:18]} g5 {[%emt 0:01:51]} 13. Bd2 {[%emt 0:00:22]} a6 {[%emt 0:01:09]} 14. Na4 {[%emt 0:01:49]} Qe8 {[%emt 0:12:52]} 15. Ba5 {[%emt 0:01:38]} Bd7 {[%emt 0:13:08]} 16. c6 {[%emt 0:01:38]} bxc6 {[%emt 0:02:46]} 17. dxc6 {[%emt 0:00:07]} Bxc6 {[%emt 0:00:18]} 18. Bxc6 {[%emt 0:00:06]} Qxc6 {[%emt 0:00:04]} 19. Rac1 {[%emt 0:00:07]} Qb5 {[%emt 0:03:30]} 20. Bxc7 {[%emt 0:00:08]} Qxe2 {[%emt 0:17:23]} 21. Re1 {[%emt 0:01:07]} Qh5 {[%emt 0:04:12]} 22. Bxe5 {[%emt 0:00:33]} Qh3 {[%emt 0:05:01]} 23. Qf3 {[%emt 0:12:05]} f4 {[%emt 0:03:41]} 24. Qg2 {[%emt 0:00:35]} Qf5 {[%emt 0:02:44]} 25. gxf4 {[%emt 0:06:28]} gxf4 {[%emt 0:00:19]} 26. Qf3 {[%emt 0:00:05]} Rad8 {[%emt 0:05:16]} 27. Nc5 {[%emt 0:01:08]} Rd5 {[%emt 0:06:46]} 28. Qxf4 {[%emt 0:02:31]} Qxf4 {[%emt 0:03:07]} 29. Bxf4 {[%emt 0:00:01]} Nh5 {[%emt 0:00:24]} 30. Be3 {[%emt 0:01:02]} Bxb2 {[%emt 0:00:06]} 31. Rc4 {[%emt 0:00:30]} Rf6 {[%emt 0:02:22]} 32. Rg4 {[%emt 0:11:09]} Kh7 {[%emt 0:01:04]} 33. Rb1 {[%emt 0:02:12]} Be5 {[%emt 0:01:04]} 34. Rb7 {[%emt 0:02:00]} Bd6 {[%emt 0:00:31]} 35. Ne4 {[%emt 0:00:36]} Rg6 {[%emt 0:00:13]} 36. h3 {[%emt 0:00:35]} Nf6 {[%emt 0:01:04]} 37. Nxf6+ {[%emt 0:03:59]} Rxf6 {[%emt 0:00:07]} 38. Ra7 {[%emt 0:00:48]} a5 {[%emt 0:00:32]} 39. Kf1 {[%emt 0:01:12]} Rdf5 {[%emt 0:01:14]} 40. Ra4 {[%emt 0:00:00]} Rh5 {[%emt 0:00:00]} 41. Kg2 {[%emt 0:04:43]} Rg6+ {[%emt 0:03:27]} 42. Rg4 {[%emt 0:00:05]} Rf5 {[%emt 0:01:40]} 43. Ra8 {[%emt 0:02:00]} h5 {[%emt 0:02:28]} 44. Rxg6 {[%emt 0:01:18]} Kxg6 {[%emt 0:00:01]} 1/2-1/2

[Event "IV Zagreb Open 2019"]
[Site "Zagreb"]
[Date "2019.12.10"]
[Round "5.11"]
[White "Peng, Hongchi"]
[Black "Rogulj, Branko"]
[Result "1/2-1/2"]
[ECO "B05"]
[WhiteElo "2271"]
[BlackElo "2400"]
[Annotator "NA"]
[PlyCount "73"]
[EventDate "2019.12.07"]
[EventType "swiss"]
[EventCountry "CRO"]
[SourceTitle "playchess.com"]
[Source "ChessBase"]
[SourceQuality "1"]
[TimeControl "40/5400+30:1800+30"]

1. e4 {[%emt 0:00:00]} Nf6 {[%emt 0:00:00]} 2. e5 {[%emt 0:00:00]} Nd5 {[%emt 0:00:00]} 3. d4 {[%emt 0:00:00]} d6 {[%emt 0:00:00]} 4. Nf3 {[%emt 0:00:00]} Bg4 {[%emt 0:00:01]} 5. Be2 {[%emt 0:00:06]} c6 {[%emt 0:00:06]} 6. O-O {[%emt 0:00:39]} Bxf3 {[%emt 0:00:04]} 7. Bxf3 {[%emt 0:00:14]} dxe5 {[%emt 0:00:06]} 8. dxe5 {[%emt 0:00:30]} e6 {[%emt 0:00:06]} 9. Qe2 {[%emt 0:03:13]} Nd7 {[%emt 0:00:08]} 10. b3 {[%emt 0:10:31]} Qc7 {[%emt 0:01:32]} 11. Re1 {[%emt 0:02:38]} Bb4 {[%emt 0:09:39]} 12. Bd2 {[%emt 0:00:47]} Bxd2 {[%emt 0:00:53]} 13. Nxd2 {[%emt 0:00:06]} O-O {[%emt 0:02:01]} 14. g3 {[%emt 0:03:50]} Rfd8 {[%emt 0:05:49]} 15. Bg2 {[%emt 0:03:20]} Ne7 {[%emt 0:19:17]} 16. f4 {[%emt 0:04:02]} Nf5 {[%emt 0:01:44]} 17. Ne4 {[%emt 0:06:58]} Qb6+ {[%emt 0:06:05]} 18. Qf2 {[%emt 0:11:11]} h5 {[%emt 0:12:12]} 19. Rad1 {[%emt 0:00:42]} Kf8 {[%emt 0:02:51]} 20. c4 {[%emt 0:04:10]} Qxf2+ {[%emt 0:03:20]} 21. Kxf2 {[%emt 0:00:05]} a5 {[%emt 0:09:24]} 22. Bh3 {[%emt 0:15:00]} Nh6 {[%emt 0:01:11]} 23. a3 {[%emt 0:03:08]} Ke7 {[%emt 0:05:11]} 24. Nd6 {[%emt 0:04:08]} Nc5 {[%emt 0:04:17]} 25. b4 {[%emt 0:01:38]} axb4 {[%emt 0:00:12]} 26. axb4 {[%emt 0:00:04]} Na6 {[%emt 0:03:27]} 27. Rb1 {[%emt 0:02:48]} Rd7 {[%emt 0:01:05]} 28. Ra1 {[%emt 0:03:09]} Rb8 {[%emt 0:00:31]} 29. Reb1 {[%emt 0:00:59]} c5 {[%emt 0:05:06]} 30. bxc5 {[%emt 0:02:40]} Nxc5 {[%emt 0:00:01]} 31. Ra5 {[%emt 0:00:38]} Rc7 {[%emt 0:00:20]} 32. Ra7 {[%emt 0:04:55]} f6 {[%emt 0:00:54]} 33. Ke3 {[%emt 0:00:24]} Nf7 {[%emt 0:00:42]} 34. Nxf7 {[%emt 0:02:24]} Kxf7 {[%emt 0:00:02]} 35. exf6 {[%emt 0:02:16]} Kxf6 {[%emt 0:02:55]} 36. Rb5 {[%emt 0:04:02]} g6 {[%emt 0:00:52]} 37. Raa5 {[%emt 0:03:01]} 1/2-1/2

[Event "IV Zagreb Open 2019"]
[Site "Zagreb"]
[Date "2019.12.11"]
[Round "6.1"]
[White "Kotronias, Vasilios"]
[Black "Kozul, Zdenko"]
[Result "1/2-1/2"]
[ECO "B67"]
[WhiteElo "2506"]
[BlackElo "2590"]
[Annotator "ChessBase"]
[PlyCount "66"]
[EventDate "2019.12.07"]
[EventType "swiss"]
[EventCountry "CRO"]
[SourceTitle "playchess.com"]
[Source "ChessBase"]
[SourceQuality "1"]
[TimeControl "40/5400+30:1800+30"]

1. e4 {[%emt 0:01:12]} c5 {[%emt 0:00:00]} 2. Nf3 {[%emt 0:00:07]} d6 {[%emt 0:00:00]} 3. d4 {[%emt 0:00:07]} cxd4 {[%emt 0:00:00]} 4. Nxd4 {[%emt 0:00:03]} Nf6 {[%emt 0:00:08]} 5. Nc3 {[%emt 0:00:05]} Nc6 {[%emt 0:01:11]} 6. Bg5 {[%emt 0:00:08]} e6 {[%emt 0:00:03]} 7. Qd2 {[%emt 0:00:09]} a6 {[%emt 0:01:46]} 8. O-O-O {[%emt 0:00:29]} Bd7 {[%emt 0:00:07]} 9. f4 {[%emt 0:00:39]} b5 {[%emt 0:01:18]} 10. Bxf6 {[%emt 0:01:05]} gxf6 {[%emt 0:00:07]} 11. f5 {[%emt 0:03:10]} Nxd4 {[%emt 0:05:02]} 12. Qxd4 {[%emt 0:00:07]} Bh6+ {[%emt 0:00:03]} 13. Kb1 {[%emt 0:00:05]} Bf4 {[%emt 0:00:06]} 14. Ne2 {[%emt 0:00:27]} Be5 {[%emt 0:00:07]} 15. Qd2 {[%emt 0:01:56]} exf5 {[%emt 0:18:13]} 16. exf5 {[%emt 0:00:10]} Bxf5 {[%emt 0:01:10]} 17. Nf4 {[%emt 0:05:24]} Rc8 {[%emt 0:11:49]} 18. Bd3 {[%emt 0:01:34]} Be6 {[%emt 0:00:08]} 19. Rhf1 {[%emt 0:04:05]} Qb6 {[%emt 0:12:19]} 20. Nxe6 {[%emt 0:30:15]} fxe6 {[%emt 0:00:08]} 21. Qh6 {[%emt 0:00:04]} Kd8 {[%emt 0:01:52]} 22. Rxf6 {[%emt 0:09:31]} Bxf6 {[%emt 0:09:15]} 23. Qxf6+ {[%emt 0:00:10]} Kc7 {[%emt 0:00:07]} 24. Qxe6 {[%emt 0:00:29]} Rce8 {[%emt 0:01:09]} 25. Qf7+ {[%emt 0:02:08]} Kb8 {[%emt 0:00:20]} 26. a3 {[%emt 0:01:16]} Re5 {[%emt 0:08:36]} 27. Qg7 {[%emt 0:07:10]} Rhe8 {[%emt 0:07:29]} 28. Qxh7 {[%emt 0:02:52]} Re1 {[%emt 0:00:08]} 29. Rxe1 {[%emt 0:00:35]} Rxe1+ {[%emt 0:00:07]} 30. Ka2 {[%emt 0:00:02]} Qc5 {[%emt 0:01:08]} 31. Qh8+ {[%emt 0:01:43]} Ka7 {[%emt 0:02:27]} 32. Qd8 {[%emt 0:04:38]} Qd5+ {[%emt 0:05:14]} 33. b3 {[%emt 0:02:18]} Qd4 {[%emt 0:06:09]} 1/2-1/2

[Event "IV Zagreb Open 2019"]
[Site "Zagreb"]
[Date "2019.12.11"]
[Round "6.2"]
[White "Strikovic, Aleksa"]
[Black "Enchev, Ivajlo"]
[Result "1/2-1/2"]
[ECO "B10"]
[WhiteElo "2468"]
[BlackElo "2482"]
[Annotator "ChessBase"]
[PlyCount "39"]
[EventDate "2019.12.07"]
[EventType "swiss"]
[EventCountry "CRO"]
[SourceTitle "playchess.com"]
[Source "ChessBase"]
[SourceQuality "1"]
[TimeControl "40/5400+30:1800+30"]

1. c4 {[%emt 0:00:00]} c6 {[%emt 0:00:00]} 2. e4 {[%emt 0:00:17]} d5 {[%emt 0:00:06]} 3. exd5 {[%emt 0:01:13]} cxd5 {[%emt 0:00:02]} 4. cxd5 {[%emt 0:00:11]} Nf6 {[%emt 0:00:19]} 5. Qa4+ {[%emt 0:00:41]} Nbd7 {[%emt 0:00:28]} 6. Nc3 {[%emt 0:00:11]} g6 {[%emt 0:00:16]} 7. Nf3 {[%emt 0:00:19]} Bg7 {[%emt 0:00:20]} 8. Bc4 {[%emt 0:00:08]} O-O {[%emt 0:00:25]} 9. d3 {[%emt 0:00:05]} a6 {[%emt 0:01:06]} 10. Qa3 {[%emt 0:00:06]} b6 {[%emt 0:04:25]} 11. O-O {[%emt 0:01:53]} Bb7 {[%emt 0:01:41]} 12. Re1 {[%emt 0:02:12]} b5 {[%emt 0:04:49]} 13. Bb3 {[%emt 0:00:06]} Re8 {[%emt 0:02:13]} 14. Be3 {[%emt 0:07:27]} Nb6 {[%emt 0:08:04]} 15. Bxb6 {[%emt 0:02:44]} Qxb6 {[%emt 0:00:06]} 16. Qb4 {[%emt 0:00:08]} Qd6 {[%emt 0:10:35]} 17. Qxd6 {[%emt 0:09:58]} exd6 {[%emt 0:00:03]} 18. a3 {[%emt 0:00:07]} Kf8 {[%emt 0:04:02]} 19. Kf1 {[%emt 0:03:25]} Rac8 {[%emt 0:03:52]} 20. Rxe8+ {[%emt 0:19:38]} 1/2-1/2

[Event "IV Zagreb Open 2019"]
[Site "Zagreb"]
[Date "2019.12.11"]
[Round "6.4"]
[White "Smith, Bryan"]
[Black "Kovacevic, Blazimir"]
[Result "0-1"]
[ECO "B12"]
[WhiteElo "2428"]
[BlackElo "2453"]
[Annotator "ChessBase"]
[PlyCount "56"]
[EventDate "2019.12.07"]
[EventType "swiss"]
[EventCountry "CRO"]
[SourceTitle "playchess.com"]
[Source "ChessBase"]
[SourceQuality "1"]
[TimeControl "40/5400+30:1800+30"]

1. e4 {[%emt 0:00:00]} c6 {[%emt 0:00:00]} 2. d4 {[%emt 0:00:27]} d5 {[%emt 0:00:00]} 3. e5 {[%emt 0:02:28]} c5 {[%emt 0:00:08]} 4. dxc5 {[%emt 0:01:16]} e6 {[%emt 0:00:14]} 5. a3 {[%emt 0:02:54]} Nc6 {[%emt 0:00:21]} 6. Nf3 {[%emt 0:02:28]} Bxc5 {[%emt 0:00:09]} 7. b4 {[%emt 0:02:16]} Bb6 {[%emt 0:00:06]} 8. Bd3 {[%emt 0:00:35]} f6 {[%emt 0:01:10]} 9. Bb2 {[%emt 0:06:23]} fxe5 {[%emt 0:00:58]} 10. Nxe5 {[%emt 0:05:12]} Nf6 {[%emt 0:00:19]} 11. O-O {[%emt 0:01:09]} O-O {[%emt 0:00:26]} 12. Nd2 {[%emt 0:00:51]} a5 {[%emt 0:01:09]} 13. b5 {[%emt 0:04:31]} Nxe5 {[%emt 0:00:16]} 14. Bxe5 {[%emt 0:01:24]} Bd7 {[%emt 0:01:01]} 15. a4 {[%emt 0:03:10]} Be8 {[%emt 0:01:41]} 16. c4 {[%emt 0:11:34]} Rc8 {[%emt 0:06:18]} 17. Rc1 {[%emt 0:03:51]} Qe7 {[%emt 0:23:45]} 18. Nb3 {[%emt 0:03:12]} dxc4 {[%emt 0:06:05]} 19. Bd6 {[%emt 0:04:23]} Qd7 {[%emt 0:05:13]} 20. Bxf8 {[%emt 0:03:47]} cxd3 {[%emt 0:00:52]} 21. Bc5 {[%emt 0:21:08]} Bh5 {[%emt 0:01:23]} 22. Qd2 {[%emt 0:10:40]} Ne4 {[%emt 0:10:47]} 23. Qe3 {[%emt 0:00:05]} Nxc5 {[%emt 0:01:34]} 24. Rxc5 {[%emt 0:01:47]} Bxc5 {[%emt 0:05:15]} 25. Nxc5 {[%emt 0:00:07]} Rxc5 {[%emt 0:00:03]} 26. Qxc5 {[%emt 0:00:13]} Be2 {[%emt 0:00:03]} 27. b6 {[%emt 0:04:03]} d2 {[%emt 0:01:55]} 28. Qc7 {[%emt 0:00:17]} d1=Q {[%emt 0:00:18]} 0-1